bitfinex/quotes_ETHUSD_20250720
["timestamp","ask_amount","ask_price","bid_price","bid_amount"]
[1752979272246,0.461,3619.6,3619.3,4.4256]
[1752979272449,0.461,3619.5,3619.3,4.4256]
[1752979272655,0.9064,3619.9,3619.3,4.4256]
[1752979272823,0.1376,3619.9,3619.4,0.02762888]
[1752979273026,0.5986,3619.9,3619.3,8.09870791]
[1752979273563,0.7688,3620.2,3619.3,5.19815177]
[1752979273768,5.0548,3620.2,3619.8,0.1376]
[1752979273961,5.0548,3620.2,3619.8,2.90016018]
[1752979274164,5.5158,3620.2,3619.8,2.90016018]
[1752979274466,0.461,3620.1,3619.8,2.90016018]
[1752979274671,0.461,3620.0,3619.8,2.90016018]
[1752979275866,0.461,3620.0,3619.9,2.76250725]
[1752979276931,0.461,3620.0,3619.8,0.1376]
[1752979276932,2.76257431,3619.9,3619.2,2.76298989]
[1752979277168,0.5986,3619.8,3619.2,0.1376]
[1752979277335,0.5986,3619.8,3619.3,2.76291398]
[1752979277532,0.461,3619.7,3619.3,2.76291398]
[1752979277728,0.461,3619.6,3619.3,2.76291398]
[1752979278372,0.461,3619.6,3619.2,0.1376]
[1752979278373,0.461,3619.6,3619.4,2.76288219]
[1752979278736,0.461,3619.6,3619.3,2.76293532]
[1752979279787,0.1376,3619.8,3619.3,1.09932174]
[1752979280087,0.1376,3619.8,3619.7,2.76265988]
[1752979280933,0.461,3620.2,3619.6,3.1962391]
[1752979281171,0.461,3620.2,3620.0,2.76240938]
[1752979282383,0.461,3620.2,3620.1,2.76235463]
[1752979282594,0.461,3620.2,3620.0,2.76240647]
[1752979282883,5.0728,3620.3,3620.0,2.76240647]
[1752979283066,0.4278,3620.2,3620.0,2.76240647]
[1752979283261,5.0728,3620.3,3620.0,2.76240647]
[1752979283487,0.4278,3620.1,3620.0,2.76240647]
[1752979286454,4.284,3620.3,3620.2,2.76227832]
[1752979287184,0.4298,3620.5,3620.2,0.96530239]
[1752979287185,0.002,3620.5,3620.2,0.96530239]
[1752979287387,0.002,3620.5,3620.4,6.09596483]
[1752979287593,0.002,3620.5,3620.4,6.89046483]
[1752979293141,0.002,3620.5,3620.4,3.69422573]
[1752979293304,0.002,3620.5,3620.4,5.14103548]
[1752979295413,0.4298,3620.5,3619.9,2.76244673]
[1752979295617,0.4298,3620.5,3620.2,0.1376]
[1752979295918,0.4278,3620.4,3620.0,7.04541902]
[1752979296233,0.4278,3620.4,3620.0,4.283]
[1752979296234,3.18997479,3620.4,3620.0,4.283]
[1752979296537,1.11523737,3620.3,3619.9,4.282]
[1752979296816,1.25283737,3620.3,3619.9,4.282]
[1752979297025,0.4278,3620.2,3619.9,4.282]
[1752979297386,0.4278,3620.1,3619.9,4.282]
[1752979297587,0.1376,3620.3,3619.9,4.282]
[1752979297786,0.002,3620.5,3620.2,3.1962391]
[1752979297990,0.002,3620.5,3620.4,2.76212573]
[1752979298596,0.002,3620.5,3620.4,2.89972573]
[1752979299492,0.002,3620.5,3620.4,7.18172573]
[1752979299824,0.7757,3620.5,3619.9,3.1962391]
[1752979299993,1.2035,3620.5,3620.2,2.76224845]
[1752979300194,0.4298,3620.5,3620.2,2.76224845]
[1752979301187,0.4278,3620.4,3620.0,7.04441139]
[1752979301592,0.002,3620.5,3620.0,7.04441139]
[1752979301825,0.4278,3620.4,3620.0,7.04441139]
[1752979302024,0.4278,3620.3,3620.0,4.282]
[1752979302228,0.4278,3620.2,3619.1,3.9778391]
[1752979302415,0.7737,3620.4,3618.7,0.00110001]
[1752979302416,0.7737,3620.4,3620.2,2.76222442]
[1752979302593,0.4278,3620.4,3620.1,2.76232517]
[1752979302795,0.4278,3620.4,3620.2,2.76226432]
[1752979303001,0.002,3620.5,3620.2,2.76226432]
[1752979303200,0.002,3620.5,3619.9,3.1962391]
[1752979303464,0.002,3620.5,3620.4,2.76212573]
[1752979305028,0.002,3620.5,3620.3,3.1962391]
[1752979305232,0.002,3620.5,3620.4,2.76212573]
[1752979306241,0.002,3620.5,3620.3,2.76214165]
[1752979306446,0.4278,3620.4,3620.3,2.76214165]
[1752979307067,0.4278,3620.4,3620.2,2.76224854]
[1752979307279,0.002,3620.5,3620.3,2.76218567]
[1752979308002,0.002,3620.5,3620.2,2.76227832]
[1752979308315,0.002,3620.5,3620.4,2.76212573]
[1752979308882,0.002,3620.5,3620.3,2.76218335]
[1752979309474,0.002,3620.5,3620.4,2.76212573]
[1752979309671,0.002,3620.5,3620.4,2.92734698]
[1752979310162,0.002,3620.5,3620.4,2.89972573]
[1752979310360,0.002,3620.5,3620.4,7.20834698]
[1752979310678,0.002,3620.5,3620.4,8.49740578]
[1752979315610,0.002,3620.5,3620.4,8.49850578]
[1752979315770,0.002,3620.5,3620.4,8.49740578]
[1752979317371,0.002,3620.5,3620.4,9.29830578]
[1752979317999,0.002,3620.6,3620.4,9.29830578]
[1752979318000,1e-08,3620.6,3620.5,2.76204944]
[1752979318170,1e-08,3620.6,3620.5,8.66483031]
[1752979319388,1e-08,3620.6,3620.5,8.66373031]
[1752979320102,1e-08,3620.6,3620.5,9.14393031]
[1752979320308,1e-08,3620.6,3620.5,7.04204944]
[1752979321102,1e-08,3620.6,3620.5,7.23906936]
[1752979321407,1e-08,3620.6,3620.5,3.73586936]
[1752979321570,1e-08,3620.6,3620.5,8.01586936]
[1752979323519,1e-08,3620.6,3620.5,2.95906936]
[1752979323680,0.44370001,3620.6,3620.5,2.95906936]
[1752979324076,0.44370001,3620.6,3620.5,0.19701992]
[1752979324718,0.44370001,3620.6,3620.5,2.95906936]
[1752979325017,0.44370001,3620.6,3620.5,0.19701992]
[1752979325186,4.03207316,3620.6,3620.5,0.19701992]
[1752979325382,4.51708048,3620.6,3620.5,0.19701992]
[1752979326182,5.06708048,3620.6,3620.5,0.19701992]
[1752979333422,1.27010001,3620.6,3620.5,0.19701992]
[1752979333626,0.44370001,3620.6,3620.5,0.19701992]
[1752979333925,0.58130001,3620.6,3620.5,0.19701992]
[1752979334288,0.58130001,3620.6,3620.5,0.19801992]
[1752979338811,4.86030001,3620.6,3620.5,0.19801992]
[1752979339000,9.7779157,3620.6,3620.5,0.19801992]
[1752979340046,12.6403157,3620.6,3620.5,0.19801992]
[1752979340197,1e-08,3620.6,3620.5,0.19801992]
[1752979340938,0.45730001,3620.6,3620.5,0.19801992]
[1752979341154,1e-08,3620.6,3620.5,0.19801992]
[1752979342407,0.45730001,3620.6,3620.5,0.19801992]
[1752979344341,1e-08,3620.6,3620.5,2.96006936]
[1752979345145,1e-08,3620.6,3620.5,3.53230279]
[1752979345509,1e-08,3620.6,3620.5,4.35002328]
[1752979345706,1e-08,3620.6,3620.5,4.35112328]
[1752979346506,1e-08,3620.6,3620.5,4.15410336]
[1752979347328,1e-08,3620.6,3620.5,4.12538287]
[1752979349973,1e-08,3620.6,3620.5,4.26298287]
[1752979350444,0.04,3620.9,3620.8,6.59292059]
[1752979350445,1e-08,3620.9,3620.8,6.59292059]
[1752979350611,1e-08,3620.9,3620.8,14.06615969]
[1752979350817,1e-08,3620.9,3620.8,14.20485969]
[1752979352649,1e-08,3620.9,3620.8,6.73052059]
[1752979352950,1e-08,3620.9,3620.8,8.00652059]
[1752979353123,1e-08,3620.9,3620.8,9.82725142]
[1752979355214,0.45730001,3620.9,3620.8,0.1376]
[1752979355548,0.45730001,3620.9,3620.6,0.20485676]
[1752979355713,2.76189687,3620.7,3620.6,0.20485676]
[1752979355907,4.04589687,3620.7,3620.6,0.20485676]
[1752979357325,4.740821,3620.7,3620.6,0.20485676]
[1752979359749,8.290821,3620.7,3620.6,0.20485676]
[1752979362731,3.31197315,3620.6,3620.5,1e-08]
[1752979362918,15.46227315,3620.6,3620.5,1e-08]
[1752979363143,18.22123633,3620.6,3620.5,1e-08]
[1752979363347,7.10558356,3619.8,3619.0,0.001]
[1752979363658,11.38158356,3619.8,3619.0,0.001]
[1752979363864,11.83888356,3619.8,3619.0,0.001]
[1752979364749,0.4573,3619.8,3619.4,2.76286523]
[1752979365630,0.4573,3619.8,3619.3,2.76295453]
[1752979366728,0.4573,3619.8,3619.2,2.9006044]
[1752979367230,7.88940687,3619.8,3619.0,0.001]
[1752979367562,8.68880687,3619.8,3619.0,0.001]
[1752979369960,8.80087821,3619.8,3619.0,0.001]
[1752979372863,8.68880687,3619.8,3619.0,0.001]
[1752979374289,8.80021771,3619.8,3619.0,0.001]
[1752979374657,16.70021771,3619.8,3619.0,0.001]
[1752979375855,20.86480687,3619.8,3619.0,0.001]
[1752979376068,20.86480687,3619.8,3619.1,2.76310918]
[1752979376256,20.86480687,3619.8,3619.2,2.76302161]
[1752979376458,20.86480687,3619.8,3619.0,0.001]
[1752979376673,20.86480687,3619.8,3619.1,2.76311432]
[1752979377144,13.82622331,3619.8,3619.0,2.76417226]
[1752979377344,19.74528356,3619.8,3619.0,2.76417226]
[1752979377556,19.74528356,3619.8,3619.0,2.76414794]
[1752979377981,15.46928356,3619.8,3619.0,2.76414794]
[1752979378186,19.74528356,3619.8,3619.0,2.76414794]
[1752979378392,19.74528356,3619.8,3619.6,0.001]
[1752979380686,16.1823,3619.8,3619.6,0.001]
[1752979382487,18.94488356,3619.8,3619.6,0.001]
[1752979382696,21.12937816,3619.8,3619.6,0.001]
[1752979383161,21.95967816,3619.8,3619.6,0.001]
[1752979384280,19.1970946,3619.8,3619.6,0.001]
[1752979384486,15.50018356,3619.8,3619.6,0.001]
[1752979384801,18.94488356,3619.8,3619.6,0.001]
[1752979385978,15.175,3619.8,3619.6,0.001]
[1752979386156,18.92728356,3619.8,3619.6,0.001]
[1752979388372,19.76048356,3619.8,3619.6,0.001]
[1752979388576,22.02654153,3619.8,3619.6,0.001]
[1752979398142,22.02554153,3619.8,3619.6,0.001]
[1752979411285,7.10515988,3619.7,3619.6,0.001]
[1752979411569,7.56095988,3619.7,3619.6,0.001]
[1752979411881,7.56095988,3619.7,3619.0,0.001]
[1752979411882,3.3131179,3619.1,3619.0,0.001]
[1752979412043,8.70892969,3619.1,3619.0,0.001]
[1752979412233,12.16472969,3619.1,3619.0,0.001]
[1752979412886,20.06472969,3619.1,3619.0,0.001]
[1752979415852,20.06472969,3619.1,3619.0,1e-08]
[1752979416777,6.31319425,3619.0,3618.9,1e-08]
[1752979416944,10.00225743,3619.0,3618.9,1e-08]
[1752979417148,10.45805743,3619.0,3618.9,1e-08]
[1752979419148,18.35805743,3619.0,3618.9,1e-08]
[1752979421862,22.62905743,3619.0,3618.9,1e-08]
[1752979427002,22.17325743,3619.0,3618.9,1e-08]
[1752979427308,18.62079425,3619.0,3618.9,1e-08]
[1752979428411,14.35079425,3619.0,3618.9,1e-08]
[1752979428714,15.62079425,3619.0,3618.9,1e-08]
[1752979429011,18.62079425,3619.0,3618.9,1e-08]
[1752979429174,15.8576,3619.0,3618.9,1e-08]
[1752979429373,18.62079425,3619.0,3618.9,1e-08]
[1752979429574,15.8576,3619.0,3618.9,1e-08]
[1752979430512,18.62079425,3619.0,3618.9,1e-08]
[1752979436118,12.8556,3619.0,3618.9,1e-08]
[1752979436613,12.3056,3619.0,3618.9,0.35561535]
[1752979436813,12.3056,3619.0,3618.9,1e-08]
[1752979437885,12.3056,3619.0,3618.9,0.75950001]
[1752979438215,15.06879425,3619.0,3618.9,0.75840001]
[1752979438389,15.06879425,3619.0,3618.9,1e-08]
[1752979438592,12.3056,3619.0,3618.9,1e-08]
[1752979439692,4.4056,3619.0,3618.9,1e-08]
[1752979440917,7.16879425,3619.0,3618.9,1e-08]
[1752979443026,12.15747879,3619.0,3618.9,1e-08]
[1752979444096,3.1376,3619.0,3618.9,1e-08]
[1752979444297,7.4046,3619.0,3618.9,1e-08]
[1752979444827,4.266,3619.4,3619.0,0.7849]
[1752979445028,4.266,3619.4,3619.3,0.7849]
[1752979447898,4.266,3619.4,3619.3,1.41721662]
[1752979448802,0.002,3619.6,3619.5,2.76281254]
[1752979449024,4.268,3619.6,3619.5,2.76281254]
[1752979449413,4.268,3619.6,3619.4,0.0011]
[1752979449613,4.268,3619.6,3619.3,3.54784135]
[1752979449824,4.268,3619.6,3619.3,0.7849]
[1752979450802,4.268,3619.6,3619.4,2.76284115]
[1752979451006,4.268,3619.6,3619.3,3.54783713]
[1752979451241,4.268,3619.6,3619.3,0.7849]
[1752979451403,4.268,3619.6,3619.4,2.76287767]
[1752979452004,4.268,3619.6,3619.3,0.7849]
[1752979452248,4.268,3619.6,3619.3,0.786]
[1752979452558,0.002,3619.6,3619.5,2.76281254]
[1752979452713,0.002,3619.6,3619.5,4.23584402]
[1752979454433,0.002,3619.6,3619.5,0.827]
[1752979454941,0.002,3619.6,3619.5,3.58981254]
[1752979455112,0.002,3619.6,3619.5,0.827]
[1752979455646,0.002,3619.6,3619.5,3.58981254]
[1752979456911,0.002,3619.6,3619.5,0.827]
[1752979457115,0.002,3619.6,3619.1,0.8105]
[1752979457424,0.5831,3619.5,3619.1,0.8105]
[1752979457732,0.1376,3619.5,3619.1,0.8105]
[1752979460630,0.4653,3619.4,3618.9,0.93450001]
[1752979460834,2.76309951,3619.2,3618.9,1e-08]
[1752979461159,4.263,3619.2,3618.9,1e-08]
[1752979463316,4.263,3619.2,3618.9,2.76326973]
[1752979463757,4.263,3619.2,3618.9,1e-08]
[1752979466127,4.7283,3619.2,3618.9,1e-08]
[1752979466472,3.22843185,3619.1,3618.9,1e-08]
[1752979466624,0.6029,3619.1,3618.9,1e-08]
[1752979466966,0.4653,3619.0,3618.9,1e-08]
[1752979469860,0.1376,3619.1,3618.9,1e-08]
[1752979470069,4.263,3619.2,3619.1,2.7631179]
[1752979470281,4.263,3619.2,3619.1,3.5861179]
[1752979470917,4.263,3619.2,3619.1,0.823]
[1752979471118,4.263,3619.2,3619.1,3.5861179]
[1752979471656,0.1376,3619.4,3619.1,3.5861179]
[1752979471859,4.3996,3619.4,3619.1,0.823]
[1752979472151,0.1376,3619.4,3619.1,3.58609654]
[1752979473942,0.1376,3619.4,3619.1,0.823]
[1752979476413,0.1376,3619.4,3619.1,3.58608411]
[1752979476545,4.261,3619.4,3619.3,2.76296521]
[1752979476747,4.261,3619.4,3619.3,2.30222121]
[1752979476940,0.002,3619.5,3619.4,2.76288887]
[1752979478388,0.002,3619.5,3619.2,3.12164461]
[1752979478551,3.22825055,3619.4,3618.9,0.83140001]
[1752979478751,4.7253,3619.3,3618.9,0.96900001]
[1752979479200,0.4653,3619.2,3618.9,0.96900001]
[1752979479410,0.4653,3619.2,3618.9,3.73225818]
[1752979479574,0.4653,3619.1,3618.9,1e-08]
[1752979479776,0.1376,3619.0,3618.9,1e-08]
[1752979480004,7.16079425,3619.0,3618.9,1e-08]
[1752979480221,4.8629,3619.0,3618.9,1e-08]
[1752979480503,7.62609425,3619.0,3618.9,1e-08]
[1752979483309,4.8629,3619.0,3618.9,1e-08]
[1752979484890,7.62609425,3619.0,3618.9,1e-08]
[1752979487431,13.04220859,3619.0,3618.9,1e-08]
[1752979499032,20.94220859,3619.0,3618.9,1e-08]
[1752979508310,24.139177,3619.0,3618.9,1e-08]
[1752979515885,24.39746441,3619.0,3618.9,1e-08]
[1752979516528,2.76342332,3618.7,3618.6,1e-08]
[1752979516829,14.1365865,3618.7,3618.6,1e-08]
[1752979517115,15.01005608,3618.7,3618.6,1e-08]
[1752979518002,10.75405608,3618.7,3618.6,1e-08]
[1752979518181,15.00905608,3618.7,3618.6,1e-08]
[1752979519382,14.75070714,3618.7,3618.6,1e-08]
[1752979519587,22.65070714,3618.7,3618.6,1e-08]
[1752979520329,22.90899795,3618.7,3618.6,1e-08]
[1752979520510,22.65070714,3618.7,3618.6,1e-08]
[1752979521010,22.5066865,3618.7,3618.6,1e-08]
[1752979523703,18.2516865,3618.7,3618.6,1e-08]
[1752979523918,21.2273865,3618.7,3618.6,1e-08]
[1752979524633,16.9723865,3618.7,3618.6,1e-08]
[1752979524813,21.2263865,3618.7,3618.6,1e-08]
[1752979525204,16.9723865,3618.7,3618.6,1e-08]
[1752979525423,16.9723865,3618.7,3618.6,0.76200001]
[1752979525424,14.91742332,3618.7,3618.6,0.76200001]
[1752979525608,15.46742332,3618.7,3618.6,0.76200001]
[1752979525824,18.46742332,3618.7,3618.6,0.76200001]
[1752979526129,18.46742332,3618.7,3618.6,1e-08]
[1752979526343,8.45,3618.7,3618.6,1e-08]
[1752979526694,12.154,3618.7,3618.6,0.76200001]
[1752979526899,4.254,3618.7,3618.6,0.76310001]
[1752979527114,4.3916,3618.7,3618.6,0.76310001]
[1752979527631,4.3916,3618.7,3618.6,3.5265997]
[1752979528226,4.254,3618.7,3618.6,1.39213216]
[1752979528435,0.1376,3619.1,3618.9,0.762]
[1752979528632,7.253,3619.0,3618.9,0.762]
[1752979528931,7.253,3619.0,3618.9,3.5263706]
[1752979529433,7.253,3619.0,3618.9,0.7631]
[1752979530631,7.253,3619.0,3618.9,0.762]
[1752979531334,4.253,3619.0,3618.9,0.762]
[1752979531501,4.255,3619.0,3618.9,0.762]
[1752979531836,4.255,3619.0,3618.9,0.7631]
[1752979533057,4.255,3619.0,3618.9,0.762]
[1752979535432,4.255,3619.0,3618.9,0.7631]
[1752979535961,4.255,3619.0,3618.9,4.15536156]
[1752979536244,4.255,3619.0,3618.9,1.39209096]
[1752979536848,4.255,3619.0,3618.9,1.39099096]
[1752979537024,4.255,3619.0,3618.9,4.15426156]
[1752979537222,4.255,3619.0,3618.9,4.15536156]
[1752979537814,0.002,3619.0,3618.9,4.15536156]
[1752979538022,0.002,3619.0,3618.9,4.29296156]
[1752979542264,0.002,3619.0,3618.9,4.29186156]
[1752979542427,0.002,3619.0,3618.9,4.29296156]
[1752979544422,0.002,3619.0,3618.9,4.29186156]
[1752979545831,0.002,3619.0,3618.9,4.29296156]
[1752979547661,0.002,3619.0,3618.9,4.32059426]
[1752979548645,0.002,3619.0,3618.9,4.29296156]
[1752979549883,0.002,3619.0,3618.9,4.32059426]
[1752979550481,1e-08,3619.0,3618.9,4.32059426]
[1752979550684,1e-08,3619.3,3619.2,2.76304155]
[1752979550886,0.002,3619.5,3619.4,2.76288887]
[1752979551086,0.002,3620.2,3620.0,3.57353093]
[1752979551591,0.002,3620.2,3620.0,3.60225523]
[1752979552153,0.002,3620.2,3620.0,3.57463093]
[1752979552370,0.002,3620.2,3620.0,5.25673951]
[1752979555157,0.002,3620.2,3620.0,5.22911521]
[1752979555358,0.002,3620.2,3620.0,5.25673951]
[1752979560380,0.002,3620.2,3620.0,8.25673951]
[1752979560698,1e-08,3620.1,3620.0,8.36671521]
[1752979560991,1e-08,3620.2,3620.1,5.76235463]
[1752979561210,1e-08,3620.2,3620.1,13.00523146]
[1752979561556,1e-08,3620.2,3620.1,13.00633146]
[1752979562701,1e-08,3620.3,3620.2,2.76227832]
[1752979562874,1e-08,3620.4,3620.3,5.76220202]
[1752979563058,1e-08,3620.5,3620.4,5.76212573]
[1752979563260,1e-08,3620.5,3620.4,6.56734698]
[1752979563484,1e-08,3620.5,3620.4,6.67732573]
[1752979564005,1e-08,3620.5,3620.4,6.66682573]
[1752979564162,1e-08,3620.5,3620.4,10.91082573]
[1752979564362,1e-08,3620.5,3620.4,12.66072444]
[1752979564787,1e-08,3620.5,3620.4,12.66182444]
[1752979565093,1e-08,3620.5,3620.4,12.66072444]
[1752979565299,1e-08,3620.5,3620.4,12.66182444]
[1752979566923,1e-08,3620.5,3620.4,12.66072444]
[1752979567129,1e-08,3620.5,3620.4,8.41672444]
[1752979567313,1e-08,3620.5,3620.4,9.66072444]
[1752979567515,1e-08,3620.5,3620.4,5.41672444]
[1752979567720,1e-08,3620.5,3620.4,7.93844698]
[1752979567922,1e-08,3620.5,3620.4,7.91082573]
[1752979568515,1e-08,3620.5,3620.4,11.10889414]
[1752979568826,1e-08,3620.5,3620.4,11.10779414]
[1752979570086,1e-08,3620.5,3620.4,14.10889414]
[1752979570395,1e-08,3620.5,3620.4,15.85780285]
[1752979570593,1e-08,3620.5,3620.4,15.85680285]
[1752979570793,1e-08,3620.5,3620.4,12.85680285]
[1752979571221,1e-08,3620.5,3620.4,12.08970285]
[1752979571417,1e-08,3620.5,3620.4,8.89273444]
[1752979572205,1e-08,3620.5,3620.4,4.64973444]
[1752979572409,1e-08,3620.5,3620.4,8.89273444]
[1752979577828,1e-08,3620.5,3620.4,12.65963444]
[1752979578175,1e-08,3620.5,3620.4,12.66073444]
[1752979578943,1e-08,3620.5,3620.4,12.65963444]
[1752979579433,1e-08,3620.5,3620.4,12.66073444]
[1752979582094,1e-08,3620.5,3620.4,12.65963444]
[1752979582280,0.002,3621.1,3621.0,3.54416804]
[1752979582591,0.002,3621.1,3621.0,7.81278472]
[1752979582750,1e-08,3621.1,3621.0,7.78516804]
[1752979582954,1e-08,3621.1,3621.0,7.92276804]
[1752979584755,1e-08,3621.2,3621.1,2.76159178]
[1752979584990,1e-08,3621.2,3621.1,4.20303095]
[1752979585292,1e-08,3621.2,3621.1,4.97433095]
[1752979585882,1e-08,3621.2,3621.1,4.94561504]
[1752979587895,1e-08,3621.2,3621.1,9.18561504]
[1752979591401,1e-08,3621.2,3621.1,8.41431504]
[1752979591612,1.20730001,3621.2,3620.5,1.60508274]
[1752979591786,0.4485,3621.1,3620.6,7.00194018]
[1752979591985,0.4485,3621.1,3620.7,2.76189687]
[1752979592180,0.4485,3621.1,3620.8,2.76182059]
[1752979592386,0.4485,3621.1,3620.8,2.76180179]
[1752979592592,0.4485,3621.1,3620.9,4.24]
[1752979593290,0.7588,3621.0,3620.6,2.76191644]
[1752979593490,0.4485,3620.9,3620.7,2.76186393]
[1752979593695,0.4485,3620.9,3620.6,7.00093871]
[1752979593915,0.4485,3620.9,3620.6,2.76193871]
[1752979594082,0.4485,3620.9,3620.5,7.00204117]
[1752979594280,0.7588,3620.8,3620.0,0.001]
[1752979594520,0.7588,3620.8,3620.2,2.76227235]
[1752979594819,3.21041401,3620.7,3620.0,2.76339747]
[1752979595119,1.2073,3620.6,3620.1,4.239]
[1752979595320,0.4485,3620.5,3620.1,7.00133743]
[1752979596018,0.4485,3620.5,3620.1,2.76233743]
[1752979596206,0.7588,3620.4,3620.0,0.001]
[1752979596785,0.4485,3620.3,3620.0,0.001]
[1752979597783,0.7588,3620.4,3620.3,2.76220202]
[1752979598012,0.7849,3620.7,3620.6,2.76197315]
[1752979598193,0.002,3621.0,3620.9,2.76174431]
[1752979598398,0.002,3621.0,3620.9,7.02836175]
[1752979598600,0.002,3621.0,3620.9,7.00184431]
[1752979598924,0.002,3621.0,3620.9,9.37200651]
[1752979599133,0.002,3621.0,3620.9,9.37310651]
[1752979599297,0.002,3621.0,3620.9,12.37200651]
[1752979600397,0.002,3621.3,3621.1,2.76159178]
[1752979600724,1e-08,3621.3,3621.2,2.76151551]
[1752979600927,1e-08,3621.3,3621.2,7.87359532]
[1752979601687,1e-08,3621.3,3621.2,8.01119532]
[1752979602017,0.44850001,3621.3,3621.2,8.01119532]
[1752979602217,0.44850001,3621.3,3621.2,12.25019532]
[1752979602400,0.44850001,3621.3,3621.2,5.01119532]
[1752979602726,0.44850001,3621.3,3621.2,0.1376]
[1752979602727,1.27870001,3621.3,3621.2,0.1376]
[1752979603029,1.27870001,3621.3,3620.6,2.89955823]
[1752979603030,0.8302,3621.2,3620.6,2.89955823]
[1752979603190,1.4163,3621.2,3620.7,4.239]
[1752979603390,1.2787,3621.1,3620.7,2.76189687]
[1752979603701,0.4485,3621.0,3620.9,2.76173817]
[1752979604588,0.4485,3621.0,3620.8,2.76179912]
[1752979604789,0.4485,3621.0,3620.9,2.76174431]
[1752979605225,0.4485,3621.0,3620.8,2.76180466]
[1752979605924,0.8302,3621.1,3621.0,2.76166804]
[1752979606299,1e-08,3621.3,3621.2,2.76151551]
[1752979606686,1e-08,3621.3,3621.2,2.89911551]
[1752979607228,0.44850001,3621.3,3621.2,2.89911551]
[1752979610537,1e-08,3621.3,3621.2,7.13711551]
[1752979614561,1e-08,3621.3,3621.2,10.13711551]
[1752979614845,1e-08,3621.3,3621.2,11.50238387]
[1752979616222,1e-08,3621.3,3621.2,11.6596224]
[1752979616749,1e-08,3621.3,3621.2,8.6596224]
[1752979616936,0.46650001,3621.3,3621.2,8.6596224]
[1752979617639,1e-08,3621.3,3621.2,8.6596224]
[1752979618859,0.46650001,3621.3,3621.2,8.6596224]
[1752979619059,1e-08,3621.3,3621.2,8.6596224]
[1752979619352,0.46650001,3621.3,3621.2,4.4216224]
[1752979619522,0.46650001,3621.3,3621.2,7.29335404]
[1752979620224,1e-08,3621.3,3621.2,8.04745404]
[1752979622381,1e-08,3621.3,3621.2,11.04745404]
[1752979626968,1e-08,3621.3,3621.2,14.23873165]
[1752979639877,1e-08,3621.3,3621.2,3.05635404]
[1752979640052,0.44140001,3621.3,3621.2,7.29135404]
[1752979641353,0.44140001,3621.3,3621.2,8.61578401]
[1752979644093,0.44140001,3621.3,3621.2,7.29135404]
[1752979644791,0.44140001,3621.3,3621.2,3.05635404]
[1752979644994,0.44140001,3621.3,3621.2,7.29135404]
[1752979648902,0.44140001,3621.3,3621.2,3.05635404]
[1752979649075,0.44140001,3621.3,3621.2,7.29035404]
[1752979650306,1e-08,3621.3,3621.2,8.61478401]
[1752979653400,0.002,3621.6,3621.5,2.76128675]
[1752979653604,0.002,3621.6,3621.5,10.35177722]
[1752979653809,0.002,3621.6,3621.5,10.32416436]
[1752979654988,0.44140001,3621.9,3621.8,2.76105803]
[1752979655187,1e-08,3621.9,3621.8,6.99505803]
[1752979655386,1e-08,3621.9,3621.8,7.13265803]
[1752979655802,1.25170001,3621.9,3621.8,10.32393564]
[1752979656908,1.25170001,3621.9,3621.8,6.08993564]
[1752979657121,1.25170001,3621.9,3621.8,10.32393564]
[1752979658288,1.25170001,3621.9,3621.8,6.08993564]
[1752979658484,0.818,3621.8,3621.6,2.76119251]
[1752979658703,0.818,3621.8,3621.7,6.99413427]
[1752979659414,1.2594,3621.8,3621.7,7.13173427]
[1752979662915,1.2614,3621.8,3621.7,7.13173427]
[1752979665115,1.2614,3621.8,3621.7,0.1376]
[1752979665321,1.2614,3621.8,3621.7,6.99413427]
[1752979668902,1.2614,3621.8,3621.7,2.76113427]
[1752979669105,1.2614,3621.8,3621.7,6.99313427]
[1752979669308,1.2614,3621.8,3621.7,2.76113427]
[1752979669509,1.2614,3621.8,3621.7,6.99313427]
[1752979669742,0.4434,3621.8,3621.7,2.76113427]
[1752979669927,0.4434,3621.8,3621.7,6.99313427]
[1752979672312,0.002,3621.8,3621.7,6.99313427]
[1752979672741,0.4382,3621.8,3621.7,6.99313427]
[1752979674860,0.002,3621.8,3621.7,8.65356547]
[1752979675009,0.002,3621.8,3621.7,8.79116547]
[1752979676618,0.002,3621.8,3621.7,9.55096547]
[1752979677562,0.4362,3622.4,3621.7,9.55096547]
[1752979677563,0.002,3622.8,3622.5,2.76052449]
[1752979677713,0.002,3622.8,3622.5,7.26757694]
[1752979677914,0.002,3622.8,3622.5,7.40517694]
[1752979681248,0.00063325,3622.6,3622.5,7.40517694]
[1752979681552,0.00063325,3622.6,3622.5,7.56253118]
[1752979681758,0.00063325,3622.6,3622.5,7.40517694]
[1752979681929,0.00063325,3622.6,3622.5,7.56130182]
[1752979682538,0.00063325,3622.6,3622.5,7.40517694]
[1752979682744,0.00063325,3622.6,3622.5,7.56130182]
[1752979684038,0.00063325,3622.6,3622.5,8.34080182]
[1752979684242,0.002,3622.8,3622.5,8.34080182]
[1752979684243,0.002,3622.8,3622.5,11.34080182]
[1752979684566,0.002,3622.8,3622.7,6.0892497]
[1752979684862,0.002,3622.8,3622.7,10.3182497]
[1752979685265,0.4382,3622.8,3622.7,10.3182497]
[1752979685460,0.002,3622.8,3622.7,10.3182497]
[1752979685633,0.002,3622.8,3622.7,11.64173918]
[1752979686363,0.002,3622.8,3622.7,14.64173918]
[1752979690482,1e-08,3623.9,3623.8,2.75953419]
[1752979690624,1e-08,3623.9,3623.8,11.0010118]
[1752979690819,1.20170001,3623.9,3623.8,6.98753419]
[1752979691040,1e-08,3623.9,3623.8,6.98753419]
[1752979692339,1e-08,3623.9,3623.8,2.75953419]
[1752979692543,0.43620001,3623.9,3623.8,6.98753419]
[1752979693383,1e-08,3623.9,3623.8,6.98753419]
[1752979693678,0.43620001,3623.9,3623.8,6.98753419]
[1752979694352,0.43620001,3623.9,3623.8,7.14360307]
[1752979694555,0.43620001,3623.9,3623.8,0.15606888]
[1752979694740,1.58804522,3623.9,3623.8,4.228]